bitfinex-derivatives/quotes_ETHF0:USTF0_20250709
["timestamp","ask_amount","ask_price","bid_price","bid_amount"]
[1752045769729,28.01115748,2630.5,2630.4,2.45395059]
[1752045769934,28.77136748,2630.5,2630.4,2.45395059]
[1752045770137,28.01115748,2630.5,2630.4,2.45395059]
[1752045770327,28.77136748,2630.5,2630.4,2.45395059]
[1752045771542,28.77136748,2630.5,2630.4,1.43602]
[1752045771736,28.77036748,2630.5,2630.4,1.43602]
[1752045771932,2.12515748,2630.5,2630.4,2.17392]
[1752045772137,28.00915748,2630.5,2630.4,2.17392]
[1752045772735,2.12515748,2630.5,2630.4,2.17392]
[1752045772936,28.00915748,2630.5,2630.4,2.17392]
[1752045773241,28.76936748,2630.5,2630.4,2.17392]
[1752045775242,28.00915748,2630.5,2630.4,2.17392]
[1752045776439,28.76936748,2630.5,2630.4,2.17392]
[1752045777545,28.00915748,2630.5,2630.4,2.17392]
[1752045777944,28.76936748,2630.5,2630.4,2.17392]
[1752045778240,29.79746748,2630.5,2630.4,2.17392]
[1752045778440,30.81539807,2630.5,2630.4,2.17392]
[1752045778940,0.76027,2630.3,2630.2,3.2078]
[1752045779244,0.76039,2629.9,2629.8,0.76039]
[1752045779543,0.76041,2629.8,2629.7,1.49792]
[1752045779737,1.42711,2629.8,2629.7,2.17372]
[1752045779934,1.42711,2629.8,2629.7,0.7375]
[1752045780345,1.42711,2629.8,2629.7,1.49794]
[1752045780646,0.6667,2629.8,2629.7,2.17374]
[1752045780942,1.42711,2629.8,2629.7,2.17374]
[1752045781641,61.31749535,2629.8,2629.0,4.55048038]
[1752045781846,61.31749535,2629.8,2628.8,7.97649336]
[1752045781847,4.6079264,2629.1,2628.8,7.97649336]
[1752045782042,27.43694355,2629.0,2628.8,3.9281]
[1752045782245,41.4667,2629.0,2628.8,3.9281]
[1752045782447,0.6667,2629.0,2628.9,0.6758]
[1752045782747,25.98,2629.0,2628.9,0.6758]
[1752045783149,26.74362,2629.1,2628.9,0.6758]
[1752045784147,40.8,2629.4,2629.0,0.6758]
[1752045784350,27.47897555,2629.3,2629.0,2.0759264]
[1752045784546,40.8,2629.4,2629.0,2.0759264]
[1752045784750,40.8,2629.4,2629.2,1.4001264]
[1752045784949,0.76056,2629.3,2629.2,1.4001264]
[1752045785351,0.76056,2629.3,2629.2,2.0759264]
[1752045785550,0.76056,2629.3,2629.2,0.6758]
[1752045786249,0.76056,2629.3,2629.1,5.3247]
[1752045786552,0.76056,2629.3,2629.2,0.6758]
[1752045787453,0.76054,2629.4,2629.2,0.6758]
[1752045787758,0.76055,2629.4,2629.2,1.9706]
[1752045788452,0.76055,2629.4,2629.2,2.73118]
[1752045788650,29.95032,2629.5,2629.2,2.73118]
[1752045788850,29.95032,2629.5,2629.2,3.49438]
[1752045789356,29.95032,2629.5,2629.3,0.76055]
[1752045789656,0.76053,2629.4,2629.2,2.05537]
[1752045790053,1.38213,2629.4,2629.2,2.05537]
[1752045790254,1.38213,2629.4,2629.3,0.6898]
[1752045790456,0.6216,2629.4,2629.3,1.45036]
[1752045790656,1.38213,2629.4,2629.3,1.45036]
[1752045791056,0.6216,2629.4,2629.3,1.45036]
[1752045791961,1.38213,2629.4,2629.3,1.45036]
[1752045792361,0.6216,2629.4,2629.3,1.45036]
[1752045792561,1.38213,2629.4,2629.3,1.45036]
[1752045793159,0.6216,2629.4,2629.3,1.45036]
[1752045795063,29.94132,2629.5,2629.4,0.76053]
[1752045795263,30.56292,2629.5,2629.2,1.2948]
[1752045795463,30.56292,2629.5,2629.3,0.76056]
[1752045795664,0.76053,2629.4,2629.3,0.76056]
[1752045796062,30.56292,2629.5,2629.3,0.76056]
[1752045796262,30.56292,2629.5,2629.4,0.6898]
[1752045796564,30.56292,2629.5,2629.4,0.76053]
[1752045797063,30.56292,2629.5,2629.4,1.45033]
[1752045799564,4.58992,2629.5,2629.4,1.45033]
[1752045799960,5.9900464,2629.5,2629.4,0.6898]
[1752045800166,6.9273464,2629.5,2629.4,0.6898]
[1752045801367,6.9273464,2629.5,2629.4,1.45033]
[1752045801766,5.9900464,2629.5,2629.4,1.45033]
[1752045802169,5.9900464,2629.5,2629.4,0.6898]
[1752045802362,6.9273464,2629.5,2629.4,0.6898]
[1752045803570,6.9273464,2629.5,2629.4,1.45033]
[1752045804671,3.7195464,2629.5,2629.4,1.45033]
[1752045805167,2.7822464,2629.5,2629.4,1.45033]
[1752045806067,2.0217264,2629.5,2629.4,1.45033]
[1752045806463,0.6216,2629.5,2629.4,1.45033]
[1752045806967,1.3821,2629.5,2629.4,1.45033]
[1752045809273,2.89159127,2629.5,2629.4,1.45033]
[1752045809769,3.82889127,2629.5,2629.4,1.45033]
[1752045813077,2.13109127,2629.5,2629.4,1.45033]
[1752045816678,2.89159127,2629.5,2629.4,1.45033]
[1752045816878,2.13109127,2629.5,2629.4,1.45033]
[1752045817581,2.89159127,2629.5,2629.4,1.45033]
[1752045817781,5.22901767,2629.5,2629.4,1.45033]
[1752045818075,4.46851767,2629.5,2629.3,0.7019]
[1752045818274,2.27002127,2629.4,2629.3,0.76055]
[1752045818475,5.99972127,2629.4,2629.3,0.76055]
[1752045818675,5.23919127,2629.4,2629.3,1.41265]
[1752045819182,5.23919127,2629.4,2629.3,0.76055]
[1752045819381,5.23919127,2629.4,2629.3,1.41265]
[1752045820684,3.91489127,2629.4,2629.3,1.41265]
[1752045821785,4.67542127,2629.4,2629.3,1.41265]
[1752045822383,3.91489127,2629.4,2629.3,1.41265]
[1752045823386,4.67542127,2629.4,2629.3,1.41265]
[1752045824490,3.91489127,2629.4,2629.3,1.41265]
[1752045828791,3.91489127,2629.4,2629.3,0.76055]
[1752045829094,0.76055,2629.3,2629.2,0.76056]
[1752045829295,6.63516767,2629.3,2629.2,0.76056]
[1752045829797,5.87461767,2629.3,2629.2,0.76056]
[1752045830299,5.87461767,2629.3,2629.2,1.41266]
[1752045830495,5.87461767,2629.3,2629.2,0.76056]
[1752045831095,5.87461767,2629.3,2629.2,1.41266]
[1752045835403,4.47449127,2629.3,2629.2,1.41266]
[1752045835602,5.87461767,2629.3,2629.2,1.41266]
[1752045838904,5.49328177,2629.3,2629.2,1.41266]
[1752045841812,4.18168177,2629.3,2629.2,1.41266]
[1752045852818,3.16289127,2629.3,2629.2,1.41266]
[1752045853319,4.18168177,2629.3,2629.2,1.41266]
[1752045860224,5.49858177,2629.3,2629.2,0.76056]
[1752045863025,5.49858177,2629.3,2629.2,1.39586]
[1752045863326,5.49858177,2629.3,2629.2,0.76056]
[1752045863825,5.49858177,2629.3,2629.2,1.39586]
[1752045864124,4.18168177,2629.3,2629.2,1.39586]
[1752045864327,3.18978177,2629.3,2629.2,1.39586]
[1752045864823,4.15548177,2629.3,2629.2,1.39586]
[1752045868728,4.15259366,2629.3,2629.2,1.39586]
[1752045874633,3.18689366,2629.3,2629.2,1.39586]
[1752045874838,2.16810316,2629.3,2629.2,1.39586]
[1752045875436,3.13380316,2629.3,2629.2,1.39586]
[1752045877736,3.13380316,2629.3,2629.2,0.76058]
[1752045877937,5.84405316,2629.3,2629.1,0.7606]
[1752045878129,2.52539366,2629.2,2629.1,0.7606]
[1752045878334,4.14879366,2629.2,2629.1,0.7606]
[1752045878529,4.90937366,2629.2,2629.1,0.7606]
[1752045878736,4.90937366,2629.2,2629.1,1.4394]
[1752045878934,4.90937366,2629.2,2629.1,0.6788]
[1752045880836,4.90937366,2629.2,2629.1,1.43941]
[1752045881641,4.90937366,2629.2,2629.1,0.6788]
[1752045882041,4.90937366,2629.2,2629.1,1.43941]
[1752045882241,4.90937366,2629.2,2629.1,0.6788]
[1752045883043,4.90937366,2629.2,2629.1,1.43941]
[1752045883242,3.4027705,2629.2,2629.1,1.43941]
[1752045883442,4.90933376,2629.2,2629.1,1.43941]
[1752045883947,4.90933376,2629.2,2629.1,0.6788]
[1752045884141,4.90933376,2629.2,2629.1,1.43941]
[1752045885843,4.90933376,2629.2,2629.1,0.6788]
[1752045886144,4.90933376,2629.2,2629.1,1.43941]
[1752045886543,4.90933376,2629.2,2629.1,0.6788]
[1752045889944,4.90933376,2629.2,2629.1,1.43941]
[1752045890145,4.90933376,2629.2,2629.1,0.6788]
[1752045891646,4.90933376,2629.2,2629.1,1.43941]
[1752045893150,4.14875376,2629.2,2629.1,1.43941]
[1752045893449,3.21395376,2629.2,2629.1,1.43941]
[1752045894749,4.14875376,2629.2,2629.1,1.43941]
[1752045896249,3.21395376,2629.2,2629.1,1.43941]
[1752045898451,3.21363355,2629.2,2629.1,1.43941]
[1752045900953,4.14843355,2629.2,2629.1,1.43941]
[1752045902660,2.52503355,2629.2,2629.1,1.43941]
[1752045902860,1.50624305,2629.2,2629.1,1.43941]
[1752045903061,2.19484305,2629.2,2629.1,1.43941]
[1752045908466,3.21534305,2629.2,2629.1,1.43941]
[1752045909264,3.86004305,2629.2,2629.1,1.43941]
[1752045909869,3.86004305,2629.2,2629.1,0.76061]
[1752045910069,5.11084305,2629.2,2629.1,0.76061]
[1752045914866,5.11084305,2629.2,2629.0,0.76064]
[1752045915066,1.0187905,2629.0,2628.6,4.53198745]
[1752045915370,5.73454305,2629.1,2628.6,2.06846]
[1752045915371,1.6578905,2628.7,2628.6,2.06846]
[1752045915570,2.6783905,2628.7,2628.6,2.06846]
[1752045915872,2.6783905,2628.7,2628.6,1.38806]
[1752045916974,3.4391205,2628.7,2628.6,0.76076]
[1752045917168,6.18860875,2628.7,2628.5,0.76077]
[1752045917471,2.6625905,2628.6,2628.5,0.76077]
[1752045917670,3.3016905,2628.6,2628.5,0.76077]
[1752045918271,3.3016905,2628.6,2628.5,1.44117]
[1752045918668,3.3016905,2628.6,2628.5,0.76077]
[1752045918865,3.3016905,2628.6,2628.5,1.44117]
[1752045919067,3.3016905,2628.6,2628.5,0.76077]
[1752045919770,3.3016905,2628.6,2628.5,1.44117]
[1752045919968,3.3016905,2628.6,2628.5,0.76077]
[1752045920164,3.3016905,2628.6,2628.5,1.44117]
[1752045920771,1.6578905,2628.6,2628.5,1.44117]
[1752045922773,2.6783905,2628.6,2628.5,1.44117]
[1752045923476,1.6578905,2628.6,2628.5,1.44119]
[1752045928672,2.6783905,2628.6,2628.5,1.44119]
[1752045929278,1.6578905,2628.6,2628.5,1.44119]
[1752045929980,2.6783905,2628.6,2628.5,1.44119]
[1752045932578,1.6578905,2628.6,2628.5,1.44119]
[1752045933180,0.6391,2628.6,2628.5,1.44119]
[1752045935384,2.0392905,2628.7,2628.5,1.44119]
[1752045935385,4.2265905,2628.9,2628.8,0.7607]
[1752045935575,6.36032603,2628.9,2628.8,0.7607]
[1752045935777,7.38082603,2628.9,2628.8,0.7607]
[1752045935973,7.38082603,2628.9,2628.8,1.4411]
[1752045936177,7.38082603,2628.9,2628.8,0.7607]
[1752045936378,1.6596,2628.9,2628.8,1.4411]
[1752045936684,0.6391,2628.9,2628.8,1.4411]
[1752045938487,1.5763,2628.9,2628.8,1.4411]
[1752045938887,3.07151098,2628.9,2628.8,1.4411]
[1752045939685,2.13431098,2628.9,2628.8,1.4411]
[1752045940285,2.13469782,2628.9,2628.8,1.4411]
[1752045940988,0.6391,2628.9,2628.8,1.4411]
[1752045943490,2.13494748,2628.9,2628.8,1.4411]
[1752045946385,0.6391,2628.9,2628.8,1.4411]
[1752045948586,1.0187905,2629.1,2629.0,0.76065]
[1752045948788,2.14665558,2629.1,2629.0,0.76065]
[1752045949292,2.14665558,2629.1,2629.0,1.43315]
[1752045950593,3.08385558,2629.1,2629.0,1.43315]
[1752045951792,1.5885,2629.1,2629.0,1.43315]
[1752045971912,1.5885,2629.1,2628.9,0.661]
[1752045971913,2.34912,2629.1,2628.9,0.661]
[1752045972101,0.76069,2628.9,2628.5,7.73978745]
[1752045972411,1.0187905,2628.7,2628.6,0.76077]
[1752045972712,2.6657905,2628.7,2628.6,0.76077]
[1752045973113,4.0246905,2628.7,2628.6,0.76077]
[1752045975018,4.0246905,2628.7,2628.5,4.65718]
[1752045975219,4.0246905,2628.7,2628.6,0.76077]
[1752045976019,3.1384405,2628.7,2628.5,4.65718]
[1752045976323,1.647,2628.6,2628.5,4.65718]
[1752045976920,1.647,2628.6,2628.5,0.6886]
[1752045977114,1.647,2628.6,2628.5,1.44939]
[1752045977713,1.647,2628.6,2628.2,3.2078]
[1752045977916,1.0187905,2628.4,2628.3,0.76084]
[1752045978115,1.6891905,2628.4,2628.3,1.42314]
[1752045978417,2.6657905,2628.4,2628.3,1.42314]
[1752045978915,2.6657905,2628.4,2628.1,0.1]
[1752045979120,1.7796705,2628.2,2628.1,0.1]
[1752045979420,2.6657905,2628.2,2628.1,0.86091]
[1752045979825,2.6657905,2628.2,2628.1,1.52321]
[1752045980322,2.6657905,2628.2,2628.1,0.7623]
[1752045980522,3.4266705,2628.2,2628.1,1.52321]
[1752045980722,2.6657905,2628.2,2628.1,1.52321]
[1752045981123,3.4266705,2628.2,2628.1,1.52321]
[1752045982224,3.4266705,2628.2,2628.1,0.1]
[1752045982423,4.1137705,2628.2,2628.1,0.1]
[1752045984921,4.49708953,2628.2,2628.1,0.1]
[1752045986323,7.70488953,2628.2,2628.1,0.1]
[1752045991625,0.76101,2627.8,2627.7,0.76101]
[1752045991820,0.76099,2627.9,2627.8,0.76099]
[1752045992217,1.43139,2627.9,2627.8,0.76099]
[1752045992419,0.76101,2627.8,2627.7,0.76101]
[1752045992927,0.76103,2627.7,2627.6,0.6489]
[1752045993128,1.73761,2627.8,2627.7,0.76103]
[1752045993421,2.40801,2627.8,2627.6,1.40994]
[1752045993619,2.40801,2627.8,2627.7,0.6623]
[1752045994630,1.647,2627.8,2627.7,1.42333]
[1752045996227,4.1844,2628.0,2627.9,0.76097]
[1752045996529,1.647,2628.0,2627.9,1.42327]
[1752045998531,2.40794,2628.0,2627.9,1.42327]
[1752045998726,1.647,2628.0,2627.9,1.42327]
[1752045999028,2.40794,2628.0,2627.9,1.42327]
[1752045999419,1.647,2628.0,2627.9,1.42327]
[1752046000331,2.43450953,2628.2,2628.1,0.76091]
[1752046000521,3.07350953,2628.2,2628.1,0.76091]
[1752046000722,3.83438953,2628.2,2628.1,0.76091]
[1752046001629,3.07350953,2628.2,2628.1,0.76091]
[1752046002031,1.6714,2628.2,2628.1,1.42141]
[1752046002233,2.43228,2628.2,2628.1,0.76091]
[1752046002524,3.92929079,2628.2,2628.0,1.40392]
[1752046002729,1.0324,2628.1,2628.0,1.40392]
[1752046003028,1.6714,2628.1,2628.0,1.40392]
[1752046003430,1.39991,2628.1,2628.0,1.40392]
[1752046003629,2.43231,2628.1,2628.0,1.40392]
[1752046004229,3.9301257,2628.1,2628.0,1.40392]
[1752046005031,3.1692157,2628.1,2628.0,1.40392]
[1752046005332,3.9301257,2628.1,2628.0,1.40392]
[1752046005632,3.1692157,2628.1,2628.0,1.40392]
[1752046005828,3.9301257,2628.1,2628.0,2.06442]
[1752046006530,3.1692157,2628.1,2628.0,2.06442]
[1752046007532,3.9301257,2628.1,2628.0,2.06442]
[1752046010329,3.1692157,2628.1,2628.0,2.06442]
[1752046010935,3.9301257,2628.1,2628.0,2.06442]
[1752046011634,3.1692157,2628.1,2628.0,2.06442]
[1752046012434,3.9301257,2628.1,2628.0,2.06442]
[1752046012631,3.1692157,2628.1,2628.0,2.06442]
[1752046013034,6.3770157,2628.1,2628.0,2.06442]
[1752046013534,7.1379257,2628.1,2628.0,2.06442]
[1752046014736,5.64011,2628.1,2628.0,2.06442]
[1752046014938,6.6598165,2628.1,2628.0,2.06442]
[1752046015737,8.15718072,2628.1,2628.0,2.06442]
[1752046016040,6.36387072,2628.1,2628.0,2.06442]
[1752046016241,1.49736422,2628.1,2628.0,2.06442]
[1752046016536,1.0324,2628.6,2628.1,1.90228]
[1752046016739,3.2078,2628.7,2628.5,1.6802065]
[1752046016939,3.2078,2628.7,2628.6,1.39497]
[1752046017240,3.8468,2628.7,2628.6,1.39497]
[1752046017735,0.639,2628.7,2628.6,2.05547]
[1752046017941,0.639,2628.7,2628.6,1.39497]
[1752046018138,0.639,2628.7,2628.6,2.05547]
[1752046019641,3.2078,2629.0,2628.9,0.76068]
[1752046019841,0.639,2629.0,2628.9,0.76068]
[1752046020244,0.639,2629.0,2628.9,1.42118]
[1752046020743,1.40138192,2629.3,2628.9,0.6605]
[1752046020942,1.40138192,2629.3,2629.2,0.76059]
[1752046021156,2.04038192,2629.3,2629.2,1.42109]
[1752046021536,2.04038192,2629.3,2629.2,0.76059]
[1752046021843,2.04038192,2629.3,2629.2,1.42109]
[1752046022036,3.83334192,2629.3,2629.2,0.6605]
[1752046023247,3.83334192,2629.3,2629.2,1.42109]
[1752046023447,3.07278192,2629.3,2629.2,1.42109]
[1752046023947,3.83334192,2629.3,2629.2,1.42109]
[1752046024448,3.07278192,2629.3,2629.2,1.42109]
[1752046025046,3.83334192,2629.3,2629.2,1.42109]
[1752046027050,3.83334192,2629.3,2629.2,0.6605]
[1752046027346,3.83334192,2629.3,2629.2,1.42109]
[1752046027746,3.07278192,2629.3,2629.2,1.42109]
[1752046028048,4.60918192,2629.4,2629.3,0.76056]
[1752046028346,5.28038192,2629.4,2629.3,1.42336]
[1752046028746,4.8168,2629.4,2629.3,0.76056]
[1752046028948,6.21818192,2629.4,2629.3,0.76056]
[1752046029149,6.21818192,2629.4,2629.3,1.42336]
[1752046029348,6.97871192,2629.4,2629.3,1.42336]
[1752046029750,3.879,2629.4,2629.3,1.42336]
[1752046031052,3.2078,2629.4,2629.3,1.42336]
[1752046031652,3.879,2629.4,2629.3,1.42336]
[1752046031852,4.63953,2629.4,2629.3,1.42336]
[1752046032054,3.879,2629.4,2629.3,1.42336]
[1752046032751,4.63953,2629.4,2629.3,1.42336]
[1752046033254,3.879,2629.4,2629.3,1.42336]
[1752046033653,4.63953,2629.4,2629.3,1.42336]
[1752046033953,3.879,2629.4,2629.3,1.42336]
[1752046035055,0.6712,2629.4,2629.3,1.42336]
[1752046038955,1.609,2629.4,2629.3,1.42336]
[1752046039149,0.6712,2629.4,2629.3,1.42336]
[1752046042860,3.2078,2629.6,2629.5,0.76051]
[1752046043055,3.879,2629.6,2629.5,1.42331]
[1752046044461,4.8168,2629.6,2629.5,1.4233]
[1752046044657,6.97866192,2629.6,2629.5,0.6628]
[1752046044857,6.21818192,2629.6,2629.5,0.6628]
[1752046045060,6.21818192,2629.6,2629.5,1.42331]
[1752046045455,6.97866192,2629.6,2629.5,0.6628]
[1752046045961,6.97866192,2629.6,2629.5,1.42331]
[1752046046454,8.44132177,2629.6,2629.5,1.42331]
[1752046046659,7.68084177,2629.6,2629.5,1.42331]
[1752046047054,8.30684177,2629.6,2629.5,1.42331]
[1752046047259,9.06732177,2629.6,2629.5,1.42331]
[1752046047561,8.30684177,2629.6,2629.5,1.42331]
[1752046048862,9.06732177,2629.6,2629.5,1.42331]
[1752046049064,9.06732177,2629.6,2629.5,0.6628]
[1752046050360,9.06732177,2629.6,2629.5,1.42331]
[1752046051162,9.06732177,2629.6,2629.5,0.6628]
[1752046051662,9.06732177,2629.6,2629.5,1.42331]
[1752046051862,0.76053,2629.4,2629.3,0.76054]
[1752046052058,2.07258192,2629.4,2629.3,0.76056]
[1752046052262,3.01038192,2629.4,2629.3,1.42336]
[1752046052462,3.01038192,2629.4,2629.3,0.76056]
[1752046052962,3.01038192,2629.4,2629.3,1.42336]
[1752046053264,3.77091192,2629.4,2629.3,1.42336]
[1752046053457,3.77091192,2629.4,2629.3,0.6628]
[1752046054262,3.77091192,2629.4,2629.3,0.76056]
[1752046054858,3.01038192,2629.4,2629.3,0.76056]
[1752046055363,1.609,2629.4,2629.3,0.76056]
[1752046055564,2.36953,2629.4,2629.3,1.42336]
[1752046055762,2.36953,2629.4,2629.3,0.76056]
[1752046056259,1.609,2629.4,2629.3,1.42336]
[1752046056460,0.6712,2629.4,2629.3,0.76056]
[1752046056764,0.6712,2629.4,2629.3,2.16194192]
[1752046057062,0.6712,2629.4,2629.3,2.82474192]
[1752046058164,0.6712,2629.4,2629.3,1.42336]
[1752046060965,3.2078,2629.7,2629.6,0.76048]
[1752046061162,5.32742429,2629.7,2629.6,1.42068]
[1752046061464,6.34312429,2629.7,2629.6,1.42068]
[1752046061664,3.13532429,2629.7,2629.6,1.42068]
[1752046067669,2.11962429,2629.7,2629.6,1.42068]
[1752046068968,3.13532429,2629.7,2629.6,1.42068]
[1752046069569,2.11962429,2629.7,2629.6,1.42068]
[1752046070569,3.13532429,2629.7,2629.6,1.42068]
[1752046072271,2.11962429,2629.7,2629.6,1.42068]
[1752046075472,3.13532429,2629.7,2629.6,1.42068]
[1752046079966,4.38922429,2629.7,2629.6,1.42068]
[1752046080274,4.38922429,2629.7,2629.6,0.76048]
[1752046081272,4.38922429,2629.7,2629.6,1.42068]
[1752046081672,4.38909458,2629.7,2629.6,1.42068]
[1752046083075,2.11949458,2629.7,2629.6,1.42068]
[1752046083277,0.6551,2629.7,2629.6,1.42068]
[1752046084177,2.11947724,2629.7,2629.6,1.42068]
[1752046084477,2.11953663,2629.7,2629.6,1.42068]
[1752046085478,4.41783663,2629.7,2629.6,0.76048]
[1752046087278,4.41783663,2629.7,2629.6,1.42068]
[1752046087480,3.13523663,2629.7,2629.6,0.76048]
[1752046087680,3.13523663,2629.7,2629.6,1.41698]
[1752046087881,3.13523663,2629.7,2629.6,0.76048]
[1752046088380,3.13523663,2629.7,2629.6,1.41698]
[1752046088984,1.46443663,2629.7,2629.6,0.76048]
[1752046089283,1.6546,2629.7,2629.6,1.41698]
[1752046089580,3.11955954,2629.7,2629.6,1.41698]
[1752046092083,3.11955954,2629.7,2629.6,0.76048]
[1752046095183,4.39945954,2629.7,2629.6,0.76048]
[1752046099591,5.15990954,2629.7,2629.6,0.76048]
[1752046100093,4.39945954,2629.7,2629.6,0.76048]
[1752046100893,5.15990954,2629.7,2629.6,0.76048]
[1752046101090,4.39945954,2629.7,2629.6,0.76048]
[1752046102388,5.15990954,2629.7,2629.6,0.76048]
[1752046102594,5.80084146,2629.7,2629.0,9.66563965]
[1752046102790,2.16189192,2629.5,2629.4,0.76053]
[1752046102990,4.29455146,2629.5,2629.4,0.76053]
[1752046103191,6.63875146,2629.5,2629.4,0.76053]
[1752046104394,0.76054,2629.4,2629.3,0.76055]
[1752046104692,3.88009954,2629.4,2629.3,0.76055]
[1752046105295,3.11955954,2629.4,2629.3,1.41705]
[1752046105494,3.11955954,2629.4,2629.3,0.76055]
[1752046105993,3.88008954,2629.4,2629.3,0.76055]
[1752046106790,3.88008954,2629.4,2629.3,1.41705]
[1752046107595,3.11955954,2629.4,2629.3,1.41705]
[1752046109199,3.88008954,2629.4,2629.3,1.41705]
[1752046110099,3.11955954,2629.4,2629.3,1.41705]
[1752046110999,1.6546,2629.4,2629.3,1.41705]
[1752046114502,0.6677,2629.4,2629.3,1.41705]
[1752046118907,4.8243,2629.6,2629.3,1.41705]
[1752046118908,4.1947,2629.6,2629.5,0.76051]
[1752046119106,5.33786136,2629.6,2629.5,2.4202949]
[1752046119600,5.33786136,2629.6,2629.5,1.7788949]
[1752046119801,5.33786136,2629.6,2629.5,2.4202949]
[1752046120004,5.33786136,2629.6,2629.5,1.7788949]
[1752046120207,5.33786136,2629.6,2629.5,2.4202949]
[1752046121010,5.33786136,2629.6,2629.5,1.40191]
[1752046124911,2.13006136,2629.6,2629.5,1.40191]
[1752046128113,3.16536136,2629.6,2629.5,1.40191]
[1752046129916,3.92584136,2629.6,2629.5,1.40191]
[1752046130518,3.16536136,2629.6,2629.5,1.40191]
[1752046130816,3.92584136,2629.6,2629.5,1.40191]
[1752046131823,3.92585136,2629.6,2629.5,0.76051]
[1752046132018,5.17745136,2629.6,2629.5,0.76051]
[1752046132420,1.46466136,2629.6,2629.5,1.40191]
[1752046132722,2.13006136,2629.6,2629.5,1.40191]
[1752046136023,0.6654,2629.6,2629.5,1.40191]
[1752046137626,3.2078,2629.8,2629.7,0.76045]
[1752046137926,5.33154134,2629.8,2629.7,1.40185]
[1752046138927,6.36684134,2629.8,2629.7,1.40185]
[1752046139426,5.33154134,2629.8,2629.7,1.40185]
[1752046140516,5.3313652,2629.8,2629.7,1.40185]
[1752046141126,6.34964192,2629.8,2629.7,1.40185]
[1752046141326,7.38494192,2629.8,2629.7,1.40185]
[1752046142621,6.3666652,2629.8,2629.7,1.40185]
[1752046142827,5.3313652,2629.8,2629.7,1.40185]
[1752046143828,6.3666652,2629.8,2629.7,1.40185]
[1752046146230,7.1270852,2629.8,2629.7,0.76045]
[1752046146429,8.3365652,2629.8,2629.7,0.76045]
[1752046148635,8.3365652,2629.8,2629.7,1.39975]
[1752046150138,9.0969852,2629.8,2629.7,1.39975]
[1752046150338,9.0969852,2629.8,2629.7,0.76045]
[1752046150537,8.3365652,2629.8,2629.7,0.76045]
[1752046153039,8.3365652,2629.8,2629.7,1.39975]
[1752046154541,9.0969852,2629.8,2629.7,1.39975]
[1752046155245,8.3365652,2629.8,2629.7,1.39975]
[1752046158536,9.0969852,2629.8,2629.7,1.39975]
[1752046158741,8.3365652,2629.8,2629.7,1.39975]
[1752046159935,8.2920652,2629.8,2629.7,0.76045]
[1752046160339,10.07076192,2629.8,2629.7,0.76045]
[1752046161843,9.31034192,2629.8,2629.7,0.76045]
[1752046163249,9.31034192,2629.8,2629.7,1.39975]
[1752046163550,10.07076192,2629.8,2629.7,0.76045]
[1752046164444,9.31034192,2629.8,2629.7,0.76045]
[1752046164843,10.07076192,2629.8,2629.7,0.76045]
[1752046165648,10.07076192,2629.8,2629.7,1.39975]
[1752046165850,9.31034192,2629.8,2629.7,0.76045]
[1752046166644,9.31034192,2629.8,2629.7,1.39975]
[1752046167246,5.3532652,2629.8,2629.7,2.41802672]
[1752046169552,5.3532652,2629.8,2629.7,1.39975]
[1752046170554,6.3221652,2629.8,2629.7,1.39975]
[1752046173056,0.76048,2629.6,2629.5,0.7605]
[1752046173259,3.43495672,2629.6,2629.5,0.7605]
[1752046173458,4.89312192,2629.6,2629.5,0.7605]
[1752046173659,6.14822192,2629.6,2629.5,0.7605]
[1752046173848,5.38774192,2629.6,2629.5,0.7605]
[1752046174157,6.14822192,2629.6,2629.5,0.7605]
[1752046174359,5.38774192,2629.6,2629.5,0.7605]
[1752046175064,6.14822192,2629.6,2629.5,0.7605]
[1752046175564,5.38774192,2629.6,2629.5,0.76051]
[1752046176064,6.14822192,2629.6,2629.5,0.76051]
[1752046176664,5.38774192,2629.6,2629.5,0.76051]
[1752046177263,6.14822192,2629.6,2629.5,0.76051]
[1752046185069,5.38774192,2629.6,2629.5,0.76051]
[1752046185268,6.14822192,2629.6,2629.5,0.76051]
[1752046188474,2.1454652,2629.6,2629.5,0.76051]
[1752046188674,2.1454652,2629.6,2629.5,1.44231]
[1752046189275,3.1366652,2629.6,2629.5,1.44231]
[1752046189573,2.1454652,2629.6,2629.5,1.44231]
[1752046189969,3.1366652,2629.6,2629.5,1.44231]
[1752046190370,1.4581652,2629.6,2629.5,2.46058672]
[1752046190576,1.46079694,2629.6,2629.5,2.46058672]
[1752046190876,3.96822,2629.8,2629.5,1.70007672]
[1752046191172,1.46078023,2629.7,2629.6,1.40888]
[1752046191372,2.11178023,2629.7,2629.6,1.40888]
[1752046191572,2.11178023,2629.7,2629.6,2.09068]
[1752046191968,1.46078023,2629.7,2629.6,2.09068]
[1752046192764,1.46078023,2629.7,2629.6,3.46038]
[1752046194570,2.11178023,2629.7,2629.6,3.46038]
[1752046195474,0.651,2629.7,2629.6,3.46038]
[1752046196876,2.10242461,2629.7,2629.6,2.09068]
[1752046201279,1.45142461,2629.7,2629.6,2.09068]
[1752046201475,2.10242461,2629.7,2629.6,2.09068]
[1752046201977,0.651,2629.7,2629.6,2.09068]
[1752046202378,2.10255023,2629.7,2629.6,2.09068]
[1752046202774,3.09375023,2629.7,2629.6,2.09068]
[1752046202979,4.11202695,2629.7,2629.6,2.09068]
[1752046210482,3.09375023,2629.7,2629.6,2.09068]
[1752046212484,2.10255023,2629.7,2629.6,2.09068]
[1752046213478,3.05635023,2629.7,2629.6,2.09068]
[1752046218295,3.81680023,2629.7,2629.6,0.76048]
[1752046218591,0.76055,2629.4,2629.3,0.76053]
[1752046218792,3.23150414,2629.4,2629.3,0.76053]
[1752046220194,3.79055414,2629.4,2629.3,0.76053]
[1752046220494,4.55108414,2629.4,2629.3,0.76053]
[1752046221094,3.79055414,2629.4,2629.3,0.76053]
[1752046222196,5.39725414,2629.4,2629.3,0.76053]
[1752046223196,6.15778414,2629.4,2629.3,0.76053]
[1752046224696,5.39725414,2629.4,2629.3,0.76053]